{"text_format":"1","workbook":"xlsx","n_sheets":9,"sheets":["Sabit Bilgiler","Görevli","Lüzum","Teklif","Yaklaşık Maliyet","Onay Belgesi ","Fiyat Araştırma Tutanağı","Teslim Alma","Dilekçe"],"not_rendered":{"charts":0,"images":0,"macros":0,"external_links":1,"defined_names":10,"comments":0,"pivot_tables":0},"unopened":[],"bounds":{"document_bytes":16777216,"sheet_cells":100000,"rows_first":2000,"rows_last":500,"rows_between":2000,"halvings":0,"cell_chars":16384,"cell_head_chars":4096},"cells_cut":0,"cells_raw":0,"read":"whole","date_system":"1900"}

{"sheet":"Sabit Bilgiler","index":0,"n_rows":63,"n_cols":7,"rows_kept":63,"cut":false,"hidden":false,"merged":[[47,1,47,5],[48,1,48,5],[55,1,55,5],[52,1,52,5],[26,3,31,3],[26,5,31,5],[26,6,31,6],[26,4,31,4],[2,0,4,0],[15,0,15,1],[21,0,21,1],[24,0,24,1],[27,0,27,1]]}
[]
[null,"SABİT BİLGİLER(VERİLER)"]
["YAZILARDA KULLANILACAK BAŞLIK","T.C."]
[null,"PINARBAŞI KAYMAKAMLIĞI"]
[null,"PINARBAŞI MESLEKİ VE TEKNİK ANADOLU LİSESİ"]
["İL VE İLÇE  KODU :",38105]
["KURUM/BİRİM (İHALEYİ YAPACAK)","Malmüd(Personel Birimi)"]
["YAZILARDA KULLANILACAK SAYI"]
["LUZUM ONAYININ GÖNDERİLECEĞİ İHALE MAKAMI","PINARBAŞI MESLEKİ VE TEKNİK ANADOLU LİSESİ MÜDÜRLÜĞÜ"]
["GÖNDERİLECEK MAKAMIN YERİ( İL/İLÇE ADI )","PINARBAŞI"]
["İLİ :","KAYSERİ"]
["BİRİM MÜDÜRÜNÜN ADI ( DÜZENLEYEN )","Lokman KARA"]
["ÜNVANI","Müdür Yardımcısı"]
["İHALE YETKİLİSİ ( HARCAMA YETKİLİSİ )","Mehmet ÖZGÜL"]
["ÜNVANI","Okul Müdürü"]
["ÖDEMEYİ YAPACAK OLAN "]
["MUHASEBE BİRİMİNİN ADI","Pınarbaşı Malmüdürlüğü"]
["Kodu","38105",null,null,4000,0.18,{"$f":"E18*F18","v":720}]
["İHALEYİ YAPACAK KURUM ADI","Pınarbaşı Mesleki ve Teknik Anadolu Lisesi Müdürlüğü"]
["Birim Adı       (DİKKAT  ! DÜĞMEDEN SEÇ)","Pınarbaşı Mesleki ve Teknik Anadolu Lisesi Müdürlüğü"]
["Kurum-Birim Kodu",781]
["DÜZENLEYEN"]
["Adı Soyadı","Kenan ÇAKMAK"]
["Ünvanı","Müdür Yardımcısı"]
["İHALE YETKİLİSİ ( HARCAMA YETKİLİSİ )"]
["Adı Soyadı","Mehmet ÖZGÜL"]
["ünvanı","Okul Müdürü",null,"PİYASA ARAŞTIRMASI VE YAKLAŞIK MAALİYET","İHALE ONAY","FATURA TARİHİ","TESLİM ALMA"]
["MUHASEBE YETKİLİSİ"]
["Adı Soyadı","Ümit Murat KONYALIOĞLU"]
["Ünvanı","Müdür Başyardımcısı"]
["Sayman"]
["ÜNVANI","Mal Müdürü"]
["Tarih",{"$f":"D33","v":"19.09.2017"},null,"19.09.2017","19.09.2017","2017-09-27","27.09.2017"]
["Saat",null,null,null,null,"2017-09-27"]
["İhaleyi Alan Firma","DEMİRCİOĞLU TİCARET"]
["TC Kimlik No"]
["Banka Şube Adı","Türkiye İş Bankası Pınarbaşı Şubesi"]
["Banka Hesap No","TR55 0006 4000 0015 3100 0052 36"]
["Vergi Dairesi"]
["Fatura Tarihi",{"$f":"F33","v":"2017-09-27"}]
["Fatura Numarası","83640"]
["Fatura Tutarı",2714]
["Teklif Veren Firma 1","PINARBAŞI ELEKTRİK"]
["Teklif Veren Firma 2","YILMAZ ELEKTRİK"]
["Teklif Veren Firma 3"]
["Teklif Veren Firma 4"]
["İhaleyi Alan Firma Adresi","Yeni Cami Mah. Dedeman Cad. No:40/E Pınarbaşı/KAYSERİ"]
["İşin Tanımı","Elektrik Elektronik Tek. Alanı Temrinlik Malzeme alımı"]
["İşin Niteliği",{"$f":"B48","v":"Elektrik Elektronik Tek. Alanı Temrinlik Malzeme alımı"}]
["Mali Yıl",2017]
["Ödenek Miktarı"]
["Kodu","Okul Hesabı"]
["Lüzum Yazısı",{"$f":"B48","v":"Elektrik Elektronik Tek. Alanı Temrinlik Malzeme alımı"}]
["Nereye Alındığı","OKUL"]
["Yıl","2017-2018 Eğitim Öğretim Yılı"]
["Ne Alındığı",{"$f":"B49","v":"Elektrik Elektronik Tek. Alanı Temrinlik Malzeme alımı"}]
["Komisyon Karar No"]
["Kulllanılabilir Ödenek",50000]
["KDV",18]
["Alınacak Malzeme Miktarı (KALEM-TAŞINIR)","5(Beş) Kalem"]
["Onaylı TİF No"]
["Sayı",934]
["Bütçe Tertibi (varsa)","150.12.04"]

{"sheet":"Görevli","index":1,"n_rows":28,"n_cols":4,"rows_kept":28,"cut":false,"hidden":false,"merged":[[1,0,1,2],[14,0,14,1],[17,0,17,1]]}
[]
["YAKLAŞIK MALİYET ÇIKARMA VE PİYASA  FİYAT ARAŞTIRMASI YAPMAK İÇİN GÖREVLENDİRİLEN PERSONEL"]
["TOPLANMA TARİHİ",{"$f":"'Sabit Bilgiler'!B33","v":"19.09.2017"},"NOT . BİR, İKİ VEYA AZAMİ ÜÇ KİŞİ GÖREVLENDİRİLİR.",{"$f":"TEXT(B3, \"gg / aa / yyyy\")","v":"19 / 09 / 2017"}]
["TOPLANMA SAATİ","16:00:00",null,{"$f":"TEXT(B4, \"ss:dd\")","v":"16:00"}]
["1.NCİ GÖREVLİ","Yasin CEPECİ"]
["ÜNVANI","Elektrik-Elektronik Tek. Öğrt."]
["2.NCİ GÖREVLİ","Akın SOBACI"]
["ÜNVANI","Metal Tek. Öğrt."]
["3.NCÜ GÖREVLİ","Nevzat ÇOBAN"]
["ÜNVANI","Metal Tek. Öğrt."]
["4.NCÜ GÖREVLİ","Mehmet AVCU"]
["ÜNVANI","Elektrik-Elektronik Tek. Öğrt."]
["5.NCİ GÖREVLİ","Kasım KABA"]
["ÜNVANI","Rehberlik Öğrt."]
["MUAYENE VE TESLİM ALMA"]
["AMBAR MEMURUNUN ADI"]
["AMBAR MEMURUNUN ÜNVANI"]
["MUAYENE VE TESLİM ALMA KOMİSYONU ÜYELERİ"]
["MUAYENE TES.ALMA KOM. BAŞKANI","Kenan ÇAKMAK"]
["ÜNVANI","Müdür Yardımcısı"]
["MUAYENE TES.ALMA KOM. 1.ÜYE","Bünyamin ELTURAN"]
["ÜNVANI","Matematik Öğrt."]
["MUAYENE TES.ALMA KOM. 2.ÜYE","Yasin CEPECİ"]
["ÜNVANI","Elektrik-Elektronik Tek. Öğrt."]
["MUAYENE TES.ALMA KOM. 3.ÜYE"]
["ÜNVANI"]
["MUAYENE TES.ALMA KOM. 4.ÜYE"]
["ÜNVANI"]

{"sheet":"Lüzum","index":2,"n_rows":63,"n_cols":5,"rows_kept":63,"cut":false,"hidden":false,"merged":[[0,0,0,4],[49,0,49,4],[2,0,2,4],[4,0,4,4],[10,0,10,4],[48,0,48,4],[51,3,51,4],[62,3,62,4],[61,3,61,4],[52,1,53,1],[57,1,57,4],[55,1,55,4]]}
["PINARBAŞI MESLEKİ VE TEKNİK ANADOLU LİSESİ MÜDÜRLÜĞÜ\n                                                                                                PINARBAŞI"]
[]
[{"$f":"CONCATENATE(\"               \",'Sabit Bilgiler'!B55,\" \",'Sabit Bilgiler'!B48,\" için miktar ve özelliği aşağıda belirtilmiştir.\",)","v":"               2017-2018 Eğitim Öğretim Yılı Elektrik Elektronik Tek. Alanı Temrinlik Malzeme alımı için miktar ve özelliği aşağıda belirtilmiştir."}]
[]
["               Gereğini emir ve müsadelerinize arz ederim."]
[]
[]
[null,null,null,{"$f":"Görevli!B5","v":"Yasin CEPECİ"}]
[null,null,null,{"$f":"Görevli!B6","v":"Elektrik-Elektronik Tek. Öğrt."}]
[]
["SATIN ALINACAK MALZEMENİN"]
["SIRA\nNOSU","CİNSİ","ÖZELLİĞİ","MİKTARI","ÖLÇÜ\nBİRİMİ"]
[1,"BAKIR PLAKET","TEK YÜZLÜ ",3,"Metre kare"]
[2," SES JAKI","STEREO",150,"ADET"]
[3,"TRAFO","15 WATT ",10,"ADET"]
[4,"ENTEGRE","LM317 ",135,"ADET"]
[5,"ENTEGRE","LM7805",140,"ADET"]
[]
[]
[]
[]
[]
[]
[]
[]
[]
[]
[]
[]
[]
[]
[]
[]
[]
[]
[]
[]
[]
[]
[]
[]
[]
[]
[]
[]
[]
[]
[]
["PINARBAŞI MESLEKİ VE TEKNİK ANADOLU LİSESİ MÜDÜRLÜĞÜ"]
["SATIN ALMA BAŞKANLIĞINA"]
[]
["SAYI    :",{"$f":"CONCATENATE('Sabit Bilgiler'!B62,\"/\",'Sabit Bilgiler'!B8)","v":"934/"},null,{"$f":"'Sabit Bilgiler'!B33","v":"19.09.2017"}]
["KONU :",{"$f":"CONCATENATE('Sabit Bilgiler'!B55,\" \",'Sabit Bilgiler'!B48)","v":"2017-2018 Eğitim Öğretim Yılı Elektrik Elektronik Tek. Alanı Temrinlik Malzeme alımı"}]
[]
[]
[null,"Yukarıda cinsi, özellikleri ve miktarı belirtilen ihtiyaç maddelerinin satın alınması uygun görülmüştür."]
[]
[null,"Gereğini rica ederim."]
[]
[]
[]
[null,null,null,{"$f":"'Sabit Bilgiler'!B26","v":"Mehmet ÖZGÜL"}]
[null,null,null,{"$f":"'Sabit Bilgiler'!B27","v":"Okul Müdürü"}]

{"sheet":"Teklif","index":3,"n_rows":62,"n_cols":6,"rows_kept":62,"cut":false,"hidden":false,"merged":[[0,0,0,5],[1,0,1,5],[2,0,2,5],[3,0,3,5],[5,1,5,2],[54,2,54,5],[56,0,56,5],[59,0,59,5],[57,0,57,5],[61,0,61,5],[54,0,54,1],[6,1,6,2],[53,0,53,1],[10,6,10,13],[15,0,15,3],[15,4,15,5],[10,0,10,5],[12,0,12,1],[13,0,13,1],[8,0,8,5],[52,0,52,5],[53,2,53,5]]}
["T.C."]
["PINARBAŞI KAYMAKAMLIĞI"]
[{"$f":"'Sabit Bilgiler'!B5","v":"PINARBAŞI MESLEKİ VE TEKNİK ANADOLU LİSESİ"}]
["SATIN ALMA BAŞKANLIĞI"]
[]
["SAYI    :",{"$f":"CONCATENATE('Sabit Bilgiler'!B62,\"/\",'Sabit Bilgiler'!B8)","v":"934/"},null,null,null,{"$f":"'Sabit Bilgiler'!D33","v":"19.09.2017"}]
["KONU :","Teklif Mektubu  ve Fiyat Araştırması"]
[]
["İLGİLİ TEKLİF SAHİPLERİNE"]
[]
[{"$f":"CONCATENATE(\"                \",'Sabit Bilgiler'!B55,\" \",'Sabit Bilgiler'!B48,\" İhale Yetkilisi Makamının isteği gereğince 4734 sayılı K.İ.Kanun'un 22/d Maddesi gereğince Doğrudan Satın alınacaktır.\"&\" İsteklilerin aşağıda adı,özellikleri ve miktarları belirtilen MALLARIN 'K.D.V.' HARİÇ okulumuza verebilecekleri birim fiyat ve toplam fiyatlarını ilgili hanelere yazarak genel toplamını almalarını rica ederiz.\",)","v":"                2017-2018 Eğitim Öğretim Yılı Elektrik Elektronik Tek. Alanı Temrinlik Malzeme alımı İhale Yetkilisi Makamının isteği gereğince 4734 sayılı K.İ.Kanun'un 22/d Maddesi gereğince Doğrudan Satın alınacaktır. İsteklilerin aşağıda adı,özellikleri ve miktarları belirtilen MALLARIN 'K.D.V.' HARİÇ okulumuza verebilecekleri birim fiyat ve toplam fiyatlarını ilgili hanelere yazarak genel toplamını almalarını rica ederiz."}]
[]
[{"$f":"'Sabit Bilgiler'!B12","v":"Lokman KARA"},null,null,null,null,{"$f":"'Sabit Bilgiler'!B14","v":"Mehmet ÖZGÜL"}]
["Satın Alma Başkanı",null,null,null,null,"Okul Müdürü"]
[]
["TEKLİF MEKTUBU ",null,null,null,"TEKLİF EDİLEN"]
["Sıra No","İstenen Malzeme ","Özelliği-Zamanı","Miktarı","Birim Fiyatı","Toplam Tutarı\n(K.D.V.Hariç)"]
[{"$f":"Lüzum!A13","v":1},{"$f":"IF(Lüzum!B13=\"\",\"\",(Lüzum!B13))","v":"BAKIR PLAKET"},{"$f":"IF(Lüzum!C13=\"\",\"\",(Lüzum!C13))","v":"TEK YÜZLÜ "},{"$f":"CONCATENATE(Lüzum!D13,\" \",Lüzum!E13)","v":"3 Metre kare"}]
[{"$f":"Lüzum!A14","v":2},{"$f":"IF(Lüzum!B14=\"\",\"\",(Lüzum!B14))","v":" SES JAKI"},{"$f":"IF(Lüzum!C14=\"\",\"\",(Lüzum!C14))","v":"STEREO"},{"$f":"CONCATENATE(Lüzum!D14,\" \",Lüzum!E14)","v":"150 ADET"}]
[{"$f":"Lüzum!A15","v":3},{"$f":"IF(Lüzum!B15=\"\",\"\",(Lüzum!B15))","v":"TRAFO"},{"$f":"IF(Lüzum!C15=\"\",\"\",(Lüzum!C15))","v":"15 WATT "},{"$f":"CONCATENATE(Lüzum!D15,\" \",Lüzum!E15)","v":"10 ADET"}]
[{"$f":"Lüzum!A16","v":4},{"$f":"IF(Lüzum!B16=\"\",\"\",(Lüzum!B16))","v":"ENTEGRE"},{"$f":"IF(Lüzum!C16=\"\",\"\",(Lüzum!C16))","v":"LM317 "},{"$f":"CONCATENATE(Lüzum!D16,\" \",Lüzum!E16)","v":"135 ADET"}]
[{"$f":"Lüzum!A17","v":5},{"$f":"IF(Lüzum!B17=\"\",\"\",(Lüzum!B17))","v":"ENTEGRE"},{"$f":"IF(Lüzum!C17=\"\",\"\",(Lüzum!C17))","v":"LM7805"},{"$f":"CONCATENATE(Lüzum!D17,\" \",Lüzum!E17)","v":"140 ADET"}]
[null,{"$f":"IF(Lüzum!B18=\"\",\"\",(Lüzum!B18))","v":""},{"$f":"IF(Lüzum!C18=\"\",\"\",(Lüzum!C18))","v":""},{"$f":"CONCATENATE(Lüzum!D18,\" \",Lüzum!E18)","v":" "}]
[{"$f":"Lüzum!A19","v":0},{"$f":"IF(Lüzum!B19=\"\",\"\",(Lüzum!B19))","v":""},{"$f":"IF(Lüzum!C19=\"\",\"\",(Lüzum!C19))","v":""},{"$f":"CONCATENATE(Lüzum!D19,\" \",Lüzum!E19)","v":" "}]
[{"$f":"Lüzum!A20","v":0},{"$f":"IF(Lüzum!B20=\"\",\"\",(Lüzum!B20))","v":""},{"$f":"IF(Lüzum!C20=\"\",\"\",(Lüzum!C20))","v":""},{"$f":"CONCATENATE(Lüzum!D20,\" \",Lüzum!E20)","v":" "}]
[{"$f":"Lüzum!A21","v":0},{"$f":"IF(Lüzum!B21=\"\",\"\",(Lüzum!B21))","v":""},{"$f":"IF(Lüzum!C21=\"\",\"\",(Lüzum!C21))","v":""},{"$f":"CONCATENATE(Lüzum!D21,\" \",Lüzum!E21)","v":" "}]
[{"$f":"Lüzum!A22","v":0},{"$f":"IF(Lüzum!B22=\"\",\"\",(Lüzum!B22))","v":""},{"$f":"IF(Lüzum!C22=\"\",\"\",(Lüzum!C22))","v":""},{"$f":"CONCATENATE(Lüzum!D22,\" \",Lüzum!E22)","v":" "}]
[{"$f":"Lüzum!A23","v":0},{"$f":"IF(Lüzum!B23=\"\",\"\",(Lüzum!B23))","v":""},{"$f":"IF(Lüzum!C23=\"\",\"\",(Lüzum!C23))","v":""},{"$f":"CONCATENATE(Lüzum!D23,\" \",Lüzum!E23)","v":" "}]
[{"$f":"Lüzum!A24","v":0},{"$f":"IF(Lüzum!B24=\"\",\"\",(Lüzum!B24))","v":""},{"$f":"IF(Lüzum!C24=\"\",\"\",(Lüzum!C24))","v":""},{"$f":"CONCATENATE(Lüzum!D24,\" \",Lüzum!E24)","v":" "}]
[{"$f":"Lüzum!A25","v":0},{"$f":"IF(Lüzum!B25=\"\",\"\",(Lüzum!B25))","v":""},{"$f":"IF(Lüzum!C25=\"\",\"\",(Lüzum!C25))","v":""},{"$f":"CONCATENATE(Lüzum!D25,\" \",Lüzum!E25)","v":" "}]
[{"$f":"Lüzum!A26","v":0},{"$f":"IF(Lüzum!B26=\"\",\"\",(Lüzum!B26))","v":""},{"$f":"IF(Lüzum!C26=\"\",\"\",(Lüzum!C26))","v":""},{"$f":"CONCATENATE(Lüzum!D26,\" \",Lüzum!E26)","v":" "}]
[{"$f":"Lüzum!A27","v":0},{"$f":"IF(Lüzum!B27=\"\",\"\",(Lüzum!B27))","v":""},{"$f":"IF(Lüzum!C27=\"\",\"\",(Lüzum!C27))","v":""},{"$f":"CONCATENATE(Lüzum!D27,\" \",Lüzum!E27)","v":" "}]
[{"$f":"Lüzum!A28","v":0},{"$f":"IF(Lüzum!B28=\"\",\"\",(Lüzum!B28))","v":""},{"$f":"IF(Lüzum!C28=\"\",\"\",(Lüzum!C28))","v":""},{"$f":"CONCATENATE(Lüzum!D28,\" \",Lüzum!E28)","v":" "}]
[{"$f":"Lüzum!A29","v":0},{"$f":"IF(Lüzum!B29=\"\",\"\",(Lüzum!B29))","v":""},{"$f":"IF(Lüzum!C29=\"\",\"\",(Lüzum!C29))","v":""},{"$f":"CONCATENATE(Lüzum!D29,\" \",Lüzum!E29)","v":" "}]
[{"$f":"Lüzum!A30","v":0},{"$f":"IF(Lüzum!B30=\"\",\"\",(Lüzum!B30))","v":""},{"$f":"IF(Lüzum!C30=\"\",\"\",(Lüzum!C30))","v":""},{"$f":"CONCATENATE(Lüzum!D30,\" \",Lüzum!E30)","v":" "}]
[{"$f":"Lüzum!A31","v":0},{"$f":"IF(Lüzum!B31=\"\",\"\",(Lüzum!B31))","v":""},{"$f":"IF(Lüzum!C31=\"\",\"\",(Lüzum!C31))","v":""},{"$f":"CONCATENATE(Lüzum!D31,\" \",Lüzum!E31)","v":" "}]
[{"$f":"Lüzum!A32","v":0},{"$f":"IF(Lüzum!B32=\"\",\"\",(Lüzum!B32))","v":""},{"$f":"IF(Lüzum!C32=\"\",\"\",(Lüzum!C32))","v":""},{"$f":"CONCATENATE(Lüzum!D32,\" \",Lüzum!E32)","v":" "}]
[{"$f":"Lüzum!A33","v":0},{"$f":"IF(Lüzum!B33=\"\",\"\",(Lüzum!B33))","v":""},{"$f":"IF(Lüzum!C33=\"\",\"\",(Lüzum!C33))","v":""},{"$f":"CONCATENATE(Lüzum!D33,\" \",Lüzum!E33)","v":" "}]
[{"$f":"Lüzum!A34","v":0},{"$f":"IF(Lüzum!B34=\"\",\"\",(Lüzum!B34))","v":""},{"$f":"IF(Lüzum!C34=\"\",\"\",(Lüzum!C34))","v":""},{"$f":"CONCATENATE(Lüzum!D34,\" \",Lüzum!E34)","v":" "}]
[{"$f":"Lüzum!A35","v":0},{"$f":"IF(Lüzum!B35=\"\",\"\",(Lüzum!B35))","v":""},{"$f":"IF(Lüzum!C35=\"\",\"\",(Lüzum!C35))","v":""},{"$f":"CONCATENATE(Lüzum!D35,\" \",Lüzum!E35)","v":" "}]
[{"$f":"Lüzum!A36","v":0},{"$f":"IF(Lüzum!B36=\"\",\"\",(Lüzum!B36))","v":""},{"$f":"IF(Lüzum!C36=\"\",\"\",(Lüzum!C36))","v":""},{"$f":"CONCATENATE(Lüzum!D36,\" \",Lüzum!E36)","v":" "}]
[{"$f":"Lüzum!A37","v":0},{"$f":"IF(Lüzum!B37=\"\",\"\",(Lüzum!B37))","v":""},{"$f":"IF(Lüzum!C37=\"\",\"\",(Lüzum!C37))","v":""},{"$f":"CONCATENATE(Lüzum!D37,\" \",Lüzum!E37)","v":" "}]
[{"$f":"Lüzum!A38","v":0},{"$f":"IF(Lüzum!B38=\"\",\"\",(Lüzum!B38))","v":""},{"$f":"IF(Lüzum!C38=\"\",\"\",(Lüzum!C38))","v":""},{"$f":"CONCATENATE(Lüzum!D38,\" \",Lüzum!E38)","v":" "}]
[{"$f":"Lüzum!A39","v":0},{"$f":"IF(Lüzum!B39=\"\",\"\",(Lüzum!B39))","v":""},{"$f":"IF(Lüzum!C39=\"\",\"\",(Lüzum!C39))","v":""},{"$f":"CONCATENATE(Lüzum!D39,\" \",Lüzum!E39)","v":" "}]
[{"$f":"Lüzum!A40","v":0},{"$f":"IF(Lüzum!B40=\"\",\"\",(Lüzum!B40))","v":""},{"$f":"IF(Lüzum!C40=\"\",\"\",(Lüzum!C40))","v":""},{"$f":"CONCATENATE(Lüzum!D40,\" \",Lüzum!E40)","v":" "}]
[{"$f":"Lüzum!A41","v":0},{"$f":"IF(Lüzum!B41=\"\",\"\",(Lüzum!B41))","v":""},{"$f":"IF(Lüzum!C41=\"\",\"\",(Lüzum!C41))","v":""},{"$f":"CONCATENATE(Lüzum!D41,\" \",Lüzum!E41)","v":" "}]
[{"$f":"Lüzum!A42","v":0},{"$f":"IF(Lüzum!B42=\"\",\"\",(Lüzum!B42))","v":""},{"$f":"IF(Lüzum!C42=\"\",\"\",(Lüzum!C42))","v":""},{"$f":"CONCATENATE(Lüzum!D42,\" \",Lüzum!E42)","v":" "}]
[{"$f":"Lüzum!A43","v":0},{"$f":"IF(Lüzum!B43=\"\",\"\",(Lüzum!B43))","v":""},{"$f":"IF(Lüzum!C43=\"\",\"\",(Lüzum!C43))","v":""},{"$f":"CONCATENATE(Lüzum!D43,\" \",Lüzum!E43)","v":" "}]
[{"$f":"Lüzum!A44","v":0},{"$f":"IF(Lüzum!B44=\"\",\"\",(Lüzum!B44))","v":""},{"$f":"IF(Lüzum!C44=\"\",\"\",(Lüzum!C44))","v":""},{"$f":"CONCATENATE(Lüzum!D44,\" \",Lüzum!E44)","v":" "}]
[{"$f":"Lüzum!A45","v":0},{"$f":"IF(Lüzum!B45=\"\",\"\",(Lüzum!B45))","v":""},{"$f":"IF(Lüzum!C45=\"\",\"\",(Lüzum!C45))","v":""},{"$f":"CONCATENATE(Lüzum!D45,\" \",Lüzum!E45)","v":" "}]
[{"$f":"Lüzum!A46","v":0},{"$f":"IF(Lüzum!B46=\"\",\"\",(Lüzum!B46))","v":""},{"$f":"IF(Lüzum!C46=\"\",\"\",(Lüzum!C46))","v":""},{"$f":"CONCATENATE(Lüzum!D46,\" \",Lüzum!E46)","v":" "}]
[]
[{"$f":"CONCATENATE(\"Toplam \",'Sabit Bilgiler'!B60,\" Malzeme İçin Teklif Edilen K.D.V. Hariç Fiyat (TL)\",)","v":"Toplam 5(Beş) Kalem Malzeme İçin Teklif Edilen K.D.V. Hariç Fiyat (TL)"}]
["Rakam İle:"]
["Yazı İle:"]
[]
["PINARBAŞI MESLEKİ VE TEKNİK ANADOLU LİSESİ MÜDÜRLÜĞÜ"]
["SATIN ALMA BAŞKANLIĞINA"]
[]
["                Yukarıda cinsi, miktarı ve özellikleri belirtilen malzemeyi istenilen şartlarda, şartnameye uygun olarak ve her türlü mali sorumlulukları kabul ederek, karşılığında gösterdiğim fiyattan kurumunuza satabileceğimi taahhüt ettiğimi, bilgilerinize arz ederim.   .…/ …. / 2017"]
[]
["YÜKLENİCİ ADRESİ                                      YÜKLENİCİNİN  TİCARİ ÜNVANI                                            İMZA"]

{"sheet":"Yaklaşık Maliyet","index":4,"n_rows":56,"n_cols":12,"rows_kept":56,"cut":false,"hidden":false,"merged":[[7,0,7,11],[0,0,0,11],[1,0,1,11],[2,0,2,11],[3,10,3,11],[6,0,6,11],[3,1,3,4],[9,0,10,3],[9,4,9,9],[10,8,10,9],[9,10,10,11],[10,4,10,5],[10,6,10,7],[50,0,50,1],[51,0,51,1],[52,0,52,1],[51,9,51,11],[50,9,50,11],[52,6,52,8],[51,6,51,8],[50,6,50,8],[52,9,52,11],[47,7,47,10],[11,2,11,3],[50,3,50,5],[51,3,51,5],[52,3,52,5]]}
[{"$f":"'Sabit Bilgiler'!B3","v":"T.C."}]
[{"$f":"'Sabit Bilgiler'!B4","v":"PINARBAŞI KAYMAKAMLIĞI"}]
[{"$f":"'Sabit Bilgiler'!B5","v":"PINARBAŞI MESLEKİ VE TEKNİK ANADOLU LİSESİ"}]
["SAYI    :",{"$f":"CONCATENATE(\"934/\",'Sabit Bilgiler'!B8)","v":"934/"}]
["KONU :","Yaklaşık Maliyet Hesaplama"]
[]
["YAKLAŞIK MALİYET CETVELİ"]
[{"$f":"CONCATENATE(\"                \",\"Yaklaşık Maliyet Hesaplama Başkan Müdür Yardımcısı\",\" \",Görevli!B5,\", \",\"Üyeler\",\" \",Görevli!B7,\", \",Görevli!B9,\", \",Görevli!B11,\"' nün iştiraki ile\",\"  \",'Sabit Bilgiler'!D33,\"  tarihinde toplanarak ihale yetkilisinin  \",'Sabit Bilgiler'!E33,\"  tarihli onayı doğrultusunda 4734 sayılı Kamu İhale Kanununun 6 ve 9. maddesi ile Hizmet Alımı İhaleleri Uygulama Yönetmeliğinin 10. maddesi/Mal Alımı İhaleleri Uygulama Yönetmeliğinin 7. maddesi gereğince, mahalli esnaflar gibi kişi ve kuruluşlardan \"&\"alınan fiyatlar incelenerek, alınacak Mal/Hizmet/Yapım'e/a ait yaklaşık maliyet tutarı komisyonumuzca aşağıdaki gibi tespit edilmiştir.\")","v":"                Yaklaşık Maliyet Hesaplama Başkan Müdür Yardımcısı Yasin CEPECİ, Üyeler Akın SOBACI, Nevzat ÇOBAN, Mehmet AVCU' nün iştiraki ile  19.09.2017  tarihinde toplanarak ihale yetkilisinin  19.09.2017  tarihli onayı doğrultusunda 4734 sayılı Kamu İhale Kanununun 6 ve 9. maddesi ile Hizmet Alımı İhaleleri Uygulama Yönetmeliğinin 10. maddesi/Mal Alımı İhaleleri Uygulama Yönetmeliğinin 7. maddesi gereğince, mahalli esnaflar gibi kişi ve kuruluşlardan alınan fiyatlar incelenerek, alınacak Mal/Hizmet/Yapım'e/a ait yaklaşık maliyet tutarı komisyonumuzca aşağıdaki gibi tespit edilmiştir."}]
[]
["SATIN ALINACAK HİZMET/MAL' IN",null,null,null,"BU İŞLE İŞTİGAL EDEN KİŞİ/FİRMA/ESNAFLAR",null,null,null,null,null,"YAKLAŞIK MALİYET"]
[null,null,null,null,{"$f":"'Sabit Bilgiler'!B35","v":"DEMİRCİOĞLU TİCARET"},null,{"$f":"'Sabit Bilgiler'!B43","v":"PINARBAŞI ELEKTRİK"},null,{"$f":"'Sabit Bilgiler'!B44","v":"YILMAZ ELEKTRİK"}]
["Sıra No","Cinsi","Miktarı\n(Kg/Adet/Lt )",null,"Birim Fiyatı\n(TL) ","Toplam Fiyatı\n(TL)","Birim Fiyatı\n(TL)","Toplam Fiyatı\n(TL) ","Birim Fiyatı\n(TL)","Toplam Fiyatı\n(TL)","Ortalama   Birim Fiyatı (TL)","Ortalama Toplam Fiyatı (TL)"]
[{"$f":"IF(Lüzum!A13=\"\",\"\",Lüzum!A13)","v":1},{"$f":"IF(Lüzum!B13=\"\",\"\",Lüzum!B13)","v":"BAKIR PLAKET"},{"$f":"IF(Lüzum!D13=\"\",\"\",Lüzum!D13)","v":3},{"$f":"IF(Lüzum!E13=\"\",\"\",Lüzum!E13)","v":"Metre kare"},15,{"$f":"IF(C13=\"\",\"\",C13*E13)","v":45},20,{"$f":"IF(C13=\"\",\"\",C13*G13)","v":60},20,{"$f":"IF(C13=\"\",\"\",C13*I13)","v":60},{"$f":"IF(B13=\"\",\"\",(E13+G13+I13)/3)","v":18.333333333333332},{"$f":"IF(C13=\"\",\"\",(F13+H13+J13)/3)","v":55}]
[{"$f":"IF(Lüzum!A14=\"\",\"\",Lüzum!A14)","v":2},{"$f":"IF(Lüzum!B14=\"\",\"\",Lüzum!B14)","v":" SES JAKI"},{"$f":"IF(Lüzum!D14=\"\",\"\",Lüzum!D14)","v":150},{"$f":"IF(Lüzum!E14=\"\",\"\",Lüzum!E14)","v":"ADET"},2,300,3,450,2.5,375,2.5,375]
[{"$f":"IF(Lüzum!A15=\"\",\"\",Lüzum!A15)","v":3},{"$f":"IF(Lüzum!B15=\"\",\"\",Lüzum!B15)","v":"TRAFO"},{"$f":"IF(Lüzum!D15=\"\",\"\",Lüzum!D15)","v":10},{"$f":"IF(Lüzum!E15=\"\",\"\",Lüzum!E15)","v":"ADET"},5,50,7.5,75,6.5,65,6.333333333333333,63.333333333333336]
[{"$f":"IF(Lüzum!A16=\"\",\"\",Lüzum!A16)","v":4},{"$f":"IF(Lüzum!B16=\"\",\"\",Lüzum!B16)","v":"ENTEGRE"},{"$f":"IF(Lüzum!D16=\"\",\"\",Lüzum!D16)","v":135},{"$f":"IF(Lüzum!E16=\"\",\"\",Lüzum!E16)","v":"ADET"},60,8100,85,11475,70,9450,71.666666666666671,9675]
[{"$f":"IF(Lüzum!A17=\"\",\"\",Lüzum!A17)","v":5},{"$f":"IF(Lüzum!B17=\"\",\"\",Lüzum!B17)","v":"ENTEGRE"},{"$f":"IF(Lüzum!D17=\"\",\"\",Lüzum!D17)","v":140},{"$f":"IF(Lüzum!E17=\"\",\"\",Lüzum!E17)","v":"ADET"},65,9100,85,11900,70,9800,73.333333333333329,10266.666666666666]
[{"$f":"IF(Lüzum!A18=\"\",\"\",Lüzum!A18)","v":""},{"$f":"IF(Lüzum!B18=\"\",\"\",Lüzum!B18)","v":""},{"$f":"IF(Lüzum!D18=\"\",\"\",Lüzum!D18)","v":""},{"$f":"IF(Lüzum!E18=\"\",\"\",Lüzum!E18)","v":""},100,"",115,"",115,"","",""]
[{"$f":"IF(Lüzum!A19=\"\",\"\",Lüzum!A19)","v":""},{"$f":"IF(Lüzum!B19=\"\",\"\",Lüzum!B19)","v":""},{"$f":"IF(Lüzum!D19=\"\",\"\",Lüzum!D19)","v":""},{"$f":"IF(Lüzum!E19=\"\",\"\",Lüzum!E19)","v":""},null,"",null,"",null,"","",""]
[{"$f":"IF(Lüzum!A20=\"\",\"\",Lüzum!A20)","v":""},{"$f":"IF(Lüzum!B20=\"\",\"\",Lüzum!B20)","v":""},{"$f":"IF(Lüzum!D20=\"\",\"\",Lüzum!D20)","v":""},{"$f":"IF(Lüzum!E20=\"\",\"\",Lüzum!E20)","v":""},null,"",null,"",null,"","",""]
[{"$f":"IF(Lüzum!A21=\"\",\"\",Lüzum!A21)","v":""},{"$f":"IF(Lüzum!B21=\"\",\"\",Lüzum!B21)","v":""},{"$f":"IF(Lüzum!D21=\"\",\"\",Lüzum!D21)","v":""},{"$f":"IF(Lüzum!E21=\"\",\"\",Lüzum!E21)","v":""},null,"",null,"",null,"","",""]
[{"$f":"IF(Lüzum!A22=\"\",\"\",Lüzum!A22)","v":""},{"$f":"IF(Lüzum!B22=\"\",\"\",Lüzum!B22)","v":""},{"$f":"IF(Lüzum!D22=\"\",\"\",Lüzum!D22)","v":""},{"$f":"IF(Lüzum!E22=\"\",\"\",Lüzum!E22)","v":""},null,"",null,"",null,"","",""]
[{"$f":"IF(Lüzum!A23=\"\",\"\",Lüzum!A23)","v":""},{"$f":"IF(Lüzum!B23=\"\",\"\",Lüzum!B23)","v":""},{"$f":"IF(Lüzum!D23=\"\",\"\",Lüzum!D23)","v":""},{"$f":"IF(Lüzum!E23=\"\",\"\",Lüzum!E23)","v":""},null,"",null,"",null,"","",""]
[{"$f":"IF(Lüzum!A24=\"\",\"\",Lüzum!A24)","v":""},{"$f":"IF(Lüzum!B24=\"\",\"\",Lüzum!B24)","v":""},{"$f":"IF(Lüzum!D24=\"\",\"\",Lüzum!D24)","v":""},{"$f":"IF(Lüzum!E24=\"\",\"\",Lüzum!E24)","v":""},null,"",null,"",null,"","",""]
[{"$f":"IF(Lüzum!A25=\"\",\"\",Lüzum!A25)","v":""},{"$f":"IF(Lüzum!B25=\"\",\"\",Lüzum!B25)","v":""},{"$f":"IF(Lüzum!D25=\"\",\"\",Lüzum!D25)","v":""},{"$f":"IF(Lüzum!E25=\"\",\"\",Lüzum!E25)","v":""},null,"",null,"",null,"","",""]
[{"$f":"IF(Lüzum!A26=\"\",\"\",Lüzum!A26)","v":""},{"$f":"IF(Lüzum!B26=\"\",\"\",Lüzum!B26)","v":""},{"$f":"IF(Lüzum!D26=\"\",\"\",Lüzum!D26)","v":""},{"$f":"IF(Lüzum!E26=\"\",\"\",Lüzum!E26)","v":""},null,"",null,"",null,"","",""]
[{"$f":"IF(Lüzum!A27=\"\",\"\",Lüzum!A27)","v":""},{"$f":"IF(Lüzum!B27=\"\",\"\",Lüzum!B27)","v":""},{"$f":"IF(Lüzum!D27=\"\",\"\",Lüzum!D27)","v":""},{"$f":"IF(Lüzum!E27=\"\",\"\",Lüzum!E27)","v":""},null,"",null,"",null,"","",""]
[{"$f":"IF(Lüzum!A28=\"\",\"\",Lüzum!A28)","v":""},{"$f":"IF(Lüzum!B28=\"\",\"\",Lüzum!B28)","v":""},{"$f":"IF(Lüzum!D28=\"\",\"\",Lüzum!D28)","v":""},{"$f":"IF(Lüzum!E28=\"\",\"\",Lüzum!E28)","v":""},null,"",null,"",null,"","",""]
[{"$f":"IF(Lüzum!A29=\"\",\"\",Lüzum!A29)","v":""},{"$f":"IF(Lüzum!B29=\"\",\"\",Lüzum!B29)","v":""},{"$f":"IF(Lüzum!D29=\"\",\"\",Lüzum!D29)","v":""},{"$f":"IF(Lüzum!E29=\"\",\"\",Lüzum!E29)","v":""},null,"",null,"",null,"","",""]
[{"$f":"IF(Lüzum!A30=\"\",\"\",Lüzum!A30)","v":""},{"$f":"IF(Lüzum!B30=\"\",\"\",Lüzum!B30)","v":""},{"$f":"IF(Lüzum!D30=\"\",\"\",Lüzum!D30)","v":""},{"$f":"IF(Lüzum!E30=\"\",\"\",Lüzum!E30)","v":""},null,"",null,"",null,"","",""]
[{"$f":"IF(Lüzum!A31=\"\",\"\",Lüzum!A31)","v":""},{"$f":"IF(Lüzum!B31=\"\",\"\",Lüzum!B31)","v":""},{"$f":"IF(Lüzum!D31=\"\",\"\",Lüzum!D31)","v":""},{"$f":"IF(Lüzum!E31=\"\",\"\",Lüzum!E31)","v":""},null,"",null,"",null,"","",""]
[{"$f":"IF(Lüzum!A32=\"\",\"\",Lüzum!A32)","v":""},{"$f":"IF(Lüzum!B32=\"\",\"\",Lüzum!B32)","v":""},{"$f":"IF(Lüzum!D32=\"\",\"\",Lüzum!D32)","v":""},{"$f":"IF(Lüzum!E32=\"\",\"\",Lüzum!E32)","v":""},null,"",null,"",null,"","",""]
[{"$f":"IF(Lüzum!A33=\"\",\"\",Lüzum!A33)","v":""},{"$f":"IF(Lüzum!B33=\"\",\"\",Lüzum!B33)","v":""},{"$f":"IF(Lüzum!D33=\"\",\"\",Lüzum!D33)","v":""},{"$f":"IF(Lüzum!E33=\"\",\"\",Lüzum!E33)","v":""},null,"",null,"",null,"","",""]
[{"$f":"IF(Lüzum!A34=\"\",\"\",Lüzum!A34)","v":""},{"$f":"IF(Lüzum!B34=\"\",\"\",Lüzum!B34)","v":""},{"$f":"IF(Lüzum!D34=\"\",\"\",Lüzum!D34)","v":""},{"$f":"IF(Lüzum!E34=\"\",\"\",Lüzum!E34)","v":""},null,"",null,"",null,"","",""]
[{"$f":"IF(Lüzum!A35=\"\",\"\",Lüzum!A35)","v":""},{"$f":"IF(Lüzum!B35=\"\",\"\",Lüzum!B35)","v":""},{"$f":"IF(Lüzum!D35=\"\",\"\",Lüzum!D35)","v":""},{"$f":"IF(Lüzum!E35=\"\",\"\",Lüzum!E35)","v":""},null,"",null,"",null,"","",""]
[{"$f":"IF(Lüzum!A36=\"\",\"\",Lüzum!A36)","v":""},{"$f":"IF(Lüzum!B36=\"\",\"\",Lüzum!B36)","v":""},{"$f":"IF(Lüzum!D36=\"\",\"\",Lüzum!D36)","v":""},{"$f":"IF(Lüzum!E36=\"\",\"\",Lüzum!E36)","v":""},null,"",null,"",null,"","",""]
[{"$f":"IF(Lüzum!A37=\"\",\"\",Lüzum!A37)","v":""},{"$f":"IF(Lüzum!B37=\"\",\"\",Lüzum!B37)","v":""},{"$f":"IF(Lüzum!D37=\"\",\"\",Lüzum!D37)","v":""},{"$f":"IF(Lüzum!E37=\"\",\"\",Lüzum!E37)","v":""},null,"",null,"",null,"","",""]
[{"$f":"IF(Lüzum!A38=\"\",\"\",Lüzum!A38)","v":""},{"$f":"IF(Lüzum!B38=\"\",\"\",Lüzum!B38)","v":""},{"$f":"IF(Lüzum!D38=\"\",\"\",Lüzum!D38)","v":""},{"$f":"IF(Lüzum!E38=\"\",\"\",Lüzum!E38)","v":""},null,"",null,"",null,"","",""]
[{"$f":"IF(Lüzum!A39=\"\",\"\",Lüzum!A39)","v":""},{"$f":"IF(Lüzum!B39=\"\",\"\",Lüzum!B39)","v":""},{"$f":"IF(Lüzum!D39=\"\",\"\",Lüzum!D39)","v":""},{"$f":"IF(Lüzum!E39=\"\",\"\",Lüzum!E39)","v":""},null,"",null,"",null,"","",""]
[{"$f":"IF(Lüzum!A40=\"\",\"\",Lüzum!A40)","v":""},{"$f":"IF(Lüzum!B40=\"\",\"\",Lüzum!B40)","v":""},{"$f":"IF(Lüzum!D40=\"\",\"\",Lüzum!D40)","v":""},{"$f":"IF(Lüzum!E40=\"\",\"\",Lüzum!E40)","v":""},null,"",null,"",null,"","",""]
[{"$f":"IF(Lüzum!A41=\"\",\"\",Lüzum!A41)","v":""},{"$f":"IF(Lüzum!B41=\"\",\"\",Lüzum!B41)","v":""},{"$f":"IF(Lüzum!D41=\"\",\"\",Lüzum!D41)","v":""},{"$f":"IF(Lüzum!E41=\"\",\"\",Lüzum!E41)","v":""},null,"",null,"",null,"","",""]
[{"$f":"IF(Lüzum!A42=\"\",\"\",Lüzum!A42)","v":""},{"$f":"IF(Lüzum!B42=\"\",\"\",Lüzum!B42)","v":""},{"$f":"IF(Lüzum!D42=\"\",\"\",Lüzum!D42)","v":""},{"$f":"IF(Lüzum!E42=\"\",\"\",Lüzum!E42)","v":""},null,"",null,"",null,"","",""]
[{"$f":"IF(Lüzum!A43=\"\",\"\",Lüzum!A43)","v":""},{"$f":"IF(Lüzum!B43=\"\",\"\",Lüzum!B43)","v":""},{"$f":"IF(Lüzum!D43=\"\",\"\",Lüzum!D43)","v":""},{"$f":"IF(Lüzum!E43=\"\",\"\",Lüzum!E43)","v":""},null,"",null,"",null,"","",""]
[{"$f":"IF(Lüzum!A44=\"\",\"\",Lüzum!A44)","v":""},{"$f":"IF(Lüzum!B44=\"\",\"\",Lüzum!B44)","v":""},{"$f":"IF(Lüzum!D44=\"\",\"\",Lüzum!D44)","v":""},{"$f":"IF(Lüzum!E44=\"\",\"\",Lüzum!E44)","v":""},null,"",null,"",null,"","",""]
[{"$f":"IF(Lüzum!A45=\"\",\"\",Lüzum!A45)","v":""},{"$f":"IF(Lüzum!B45=\"\",\"\",Lüzum!B45)","v":""},{"$f":"IF(Lüzum!D45=\"\",\"\",Lüzum!D45)","v":""},{"$f":"IF(Lüzum!E45=\"\",\"\",Lüzum!E45)","v":""},null,"",null,"",null,"","",""]
[{"$f":"IF(Lüzum!A46=\"\",\"\",Lüzum!A46)","v":""},{"$f":"IF(Lüzum!B46=\"\",\"\",Lüzum!B46)","v":""},{"$f":"IF(Lüzum!D46=\"\",\"\",Lüzum!D46)","v":""},{"$f":"IF(Lüzum!E46=\"\",\"\",Lüzum!E46)","v":""},null,"",null,"",null,"","",""]
[]
[null,null,null,null,null,null,null,"Toplam K.D.V. Hariç Yaklaşık Maliyet (TL)",null,null,null,{"$f":"SUM(L13:L46)","v":20435}]
[]
[]
["Başkan",null,null,"Üye",null,null,"Üye",null,null,"Üye"]
[{"$f":"Görevli!B5","v":"Yasin CEPECİ"},null,null,{"$f":"Görevli!B7","v":"Akın SOBACI"},null,null,{"$f":"Görevli!B9","v":"Nevzat ÇOBAN"},null,null,{"$f":"Görevli!B11","v":"Mehmet AVCU"}]
[{"$f":"'Sabit Bilgiler'!B13","v":"Müdür Yardımcısı"},null,null,{"$f":"Görevli!B8","v":"Metal Tek. Öğrt."},null,null,{"$f":"Görevli!B10","v":"Metal Tek. Öğrt."},null,null,{"$f":"Görevli!B12","v":"Elektrik-Elektronik Tek. Öğrt."}]
[]
[]
[null,null,null,null,null,{"$f":"SUM(F13:F46)","v":17595},null,{"$f":"SUM(H13:H46)","v":23960},null,{"$f":"SUM(J13:J46)","v":19750}]

{"sheet":"Onay Belgesi ","index":5,"n_rows":34,"n_cols":9,"rows_kept":34,"cut":false,"hidden":false,"merged":[[0,0,0,9],[2,11,2,14],[29,8,29,9],[23,6,23,9],[24,6,24,9],[25,6,25,9],[19,0,19,9],[20,0,20,9],[21,0,21,9],[22,0,22,5],[22,6,22,9],[15,0,15,9],[13,0,13,4],[13,5,13,9],[14,0,14,4],[14,5,14,9],[33,0,33,9],[26,0,26,5],[26,6,26,9],[27,0,27,5],[27,6,27,9],[28,8,28,9],[29,2,29,4],[28,2,28,4],[30,8,30,9],[23,0,25,5],[16,0,18,9],[10,0,10,4],[10,5,10,9],[11,0,11,4],[11,5,11,9],[12,0,12,4],[12,5,12,9],[1,0,1,4],[1,5,1,9],[2,0,2,4],[6,0,6,9],[3,0,3,9],[4,0,4,4],[4,5,4,9],[5,0,5,4],[5,5,5,9],[7,0,7,4],[7,5,7,9],[8,0,8,4],[8,5,8,9],[9,0,9,4],[9,5,9,9]]}
["  O N A Y    B E L G E S İ"]
["İDARENİN ADI",null,null,null,null,"PINARBAŞI MESLEKİ VE TEKNİK ANADOLU LİSESİ MÜDÜRLÜĞÜ"]
["BELGE TARİH VE SAYISI",null,null,null,null,{"$f":"'Sabit Bilgiler'!E33","v":"19.09.2017"},{"$f":"CONCATENATE('Sabit Bilgiler'!B62,\"/\",'Sabit Bilgiler'!B8)","v":"934/"}]
["İHALE İLE İLGİLİ BİLGİLER"]
["İŞİN ADI",null,null,null,null,{"$f":"'Sabit Bilgiler'!B48","v":"Elektrik Elektronik Tek. Alanı Temrinlik Malzeme alımı"}]
["İŞİN NİTELİĞİ",null,null,null,null,{"$f":"F5","v":"Elektrik Elektronik Tek. Alanı Temrinlik Malzeme alımı"}]
[]
["Yaklaşık Maliyet",null,null,null,null,{"$f":"'Yaklaşık Maliyet'!L48","v":20435}]
["Kullanılabilir Ödenek Tutarı",null,null,null,null,{"$f":"'Sabit Bilgiler'!B58","v":50000}]
["Yatırım Proje Numarası",null,null,null,null,"-------------------------------------"]
["Bütçe Tertibi (Varsa)",null,null,null,null,{"$f":"'Sabit Bilgiler'!B63","v":"150.12.04"}]
["Avans Verilecekse Şartları",null,null,null,null,"Verilmeyecektir"]
["İhale Usulü",null,null,null,null,"4734 sayılı K.İ.K.'nun 22/d maddesi (DOĞRUDAN TEMİN)"]
["Ön Yeterlik / İhale Dokümanı Satış Bedeli",null,null,null,null,"YAPILMAYACAK/SATILMAYACAK"]
["Fiyat Farkı Ödenecekse Dayanağı Bakanlar Kurulu Kararı",null,null,null,null,"ÖDENMEYECEKTİR"]
["AÇIKLAMALAR"]
[{"$f":"CONCATENATE(\"             \",'Sabit Bilgiler'!B48,\" için ekli yaklaşık maliyet icmal tablosu incelendiğinde toplam tutar 4734 sayılı K.İ.K' nun Mal Alımı Uygulama Yönetmeliğinin 10. maddesi gereğince aynı kanunun 18 ile 22. maddeleri hükümleri doğrultusunda aynı kanunun 22/d bendi gereğince \"&\"Doğrudan Alım yapılabilmesini ve ödemelerin \",'Sabit Bilgiler'!B52,\"ndan fiyat farkı ödenmeksizin belirtilen tarihe kadar alımlarının yapılarak, ödemenin defaten fatura karşılığı ayniyat alındısı ile tamamının ödenmesi için onaylarınıza arz ederim. \",)","v":"             Elektrik Elektronik Tek. Alanı Temrinlik Malzeme alımı için ekli yaklaşık maliyet icmal tablosu incelendiğinde toplam tutar 4734 sayılı K.İ.K' nun Mal Alımı Uygulama Yönetmeliğinin 10. maddesi gereğince aynı kanunun 18 ile 22. maddeleri hükümleri doğrultusunda aynı kanunun 22/d bendi gereğince Doğrudan Alım yapılabilmesini ve ödemelerin Okul Hesabından fiyat farkı ödenmeksizin belirtilen tarihe kadar alımlarının yapılarak, ödemenin defaten fatura karşılığı ayniyat alındısı ile tamamının ödenmesi için onaylarınıza arz ederim. "}]
[]
[]
[]
[]
[]
[]
["               Yukarıda belirtilen işin açıklamalara göre yaptırılabilmesi için ihaleye çıkılması/Doğrudan Alımı hususunu onaylarınıza arz ederim."]
[null,null,null,null,null,null,"U Y G U N D U R"]
[null,null,null,null,null,null,{"$f":"'Sabit Bilgiler'!E33","v":"19.09.2017"}]
[{"$f":"'Sabit Bilgiler'!E33","v":"19.09.2017"},null,null,null,null,null,"İTA  AMİRİ "]
[]
["Adı Soyadı  ",":",{"$f":"Görevli!B5","v":"Yasin CEPECİ"},null,null,null,"Adı Soyadı",":",{"$f":"'Sabit Bilgiler'!B26","v":"Mehmet ÖZGÜL"}]
["Ünvanı",":","Satın Alma Başkanı",null,null,null,"Ünvanı",":",{"$f":"'Sabit Bilgiler'!B27","v":"Okul Müdürü"}]
["İmzası",":",null,null,null,null,"İmzası",":"]
[]
[]
["EK: Yaklaşık maliyet icmal tablosu"]

{"sheet":"Fiyat Araştırma Tutanağı","index":6,"n_rows":30,"n_cols":25,"rows_kept":30,"cut":false,"hidden":false,"merged":[[6,0,7,4],[12,0,13,4],[13,5,13,12],[13,24,13,28],[13,13,13,23],[8,5,8,12],[8,13,8,20],[8,21,8,28],[29,0,29,2],[25,5,25,12],[25,13,25,20],[24,5,24,10],[26,1,26,21],[27,1,27,21],[25,2,25,4],[24,1,24,3],[25,21,25,28],[24,12,24,18],[24,20,24,26],[21,1,21,28],[20,24,20,28],[23,5,23,10],[14,1,14,4],[15,1,15,4],[23,1,23,3],[17,3,17,4],[18,1,18,28],[14,13,14,23],[14,24,14,28],[23,12,23,18],[23,20,23,26],[14,5,14,12],[0,0,0,28],[2,7,2,18],[2,0,2,5],[3,0,3,5],[12,5,12,28],[8,1,8,4],[9,1,9,4],[10,1,10,4],[3,7,3,28],[4,7,4,9],[4,10,4,12],[6,5,6,28],[7,5,7,12],[7,13,7,20],[7,21,7,28],[4,0,4,5]]}
["PİYASA FİYAT ARAŞTIRMASI TUTANAĞI"]
[]
["İdarenin Adı",null,null,null,null,null,":",{"$f":"'Sabit Bilgiler'!B5","v":"PINARBAŞI MESLEKİ VE TEKNİK ANADOLU LİSESİ"}]
["Yapılan İş/Mal/Hizmetin Adı, Niteliği",null,null,null,null,null,":",{"$f":"'Sabit Bilgiler'!B48","v":"Elektrik Elektronik Tek. Alanı Temrinlik Malzeme alımı"}]
["Alım ve Yetkilendirilen Görevlilere İlişkin\nOnay Belgesi/Görevlendirme Onayı Tarih ve No. su",null,null,null,null,null,":",{"$f":"'Sabit Bilgiler'!D33","v":"19.09.2017"},null,null,{"$f":"Lüzum!B52","v":"934/"}]
[]
["Mal/Hizmet/Yapım İşi",null,null,null,null,"Kişi/Firmalar ve Fiyat Teklifleri"]
[null,null,null,null,null,{"$f":"CONCATENATE(\"1. \",'Sabit Bilgiler'!B35)","v":"1. DEMİRCİOĞLU TİCARET"},null,null,null,null,null,null,null,{"$f":"CONCATENATE(\"2. \",'Sabit Bilgiler'!B43)","v":"2. PINARBAŞI ELEKTRİK"},null,null,null,null,null,null,null,{"$f":"CONCATENATE(\"3. \",'Sabit Bilgiler'!B44)","v":"3. YILMAZ ELEKTRİK"}]
[1,"Birinci Kalem Mal/Hizmet/Yapım İşi",null,null,null,{"$f":"'Yaklaşık Maliyet'!F56","v":17595},null,null,null,null,null,null,null,{"$f":"'Yaklaşık Maliyet'!H56","v":23960},null,null,null,null,null,null,null,{"$f":"'Yaklaşık Maliyet'!J56","v":19750}]
[2,"İkinci Kalem Mal/Hizmet/Yapım İşi"]
[3]
[]
["Mal/Hizmet/Yapım İşi",null,null,null,null,"Uygun Görülen Kişi/Firma/Firmalar"]
[null,null,null,null,null,"Adı",null,null,null,null,null,null,null,"Adresi",null,null,null,null,null,null,null,null,null,null,"Teklif  Ettiği Fiyat"]
[1,"Birinci Kalem Mal/Hizmet/Yapım İşi",null,null,null,{"$f":"'Sabit Bilgiler'!B35","v":"DEMİRCİOĞLU TİCARET"},null,null,null,null,null,null,null,{"$f":"'Sabit Bilgiler'!B47","v":"Yeni Cami Mah. Dedeman Cad. No:40/E Pınarbaşı/KAYSERİ"},null,null,null,null,null,null,null,null,null,null,{"$f":"F9","v":17595}]
[2,"İkinci Kalem Mal/Hizmet/Yapım İşi"]
[3]
[]
[null,"            4734 sayılı Kamu İhale Kanununun 22 nci Maddesi uyarınca doğrudan temin usulüyle yapılacak alımlara ilişkin yapılan piyasa araştırmasında firmalarca/kişilerce teklif  edilen fiyatlar tarafımca/tarafımızca değerlendirilerek yukarıda adı ve adresleri belirtilen kişi/firma/firmalardan alım yapılması uygun görülmüştür. "]
[]
[null,null,null,null,null,null,null,null,null,null,null,null,null,null,null,null,null,null,null,null,null,null,null,null,{"$f":"'Sabit Bilgiler'!D33","v":"19.09.2017"}]
[null,"Piyasa Fiyat Araştırması Görevlisi/Görevlileri"]
[]
[null,{"$f":"'Sabit Bilgiler'!B23","v":"Kenan ÇAKMAK"},null,null,null,{"$f":"Görevli!B7","v":"Akın SOBACI"},null,null,null,null,null,null,{"$f":"Görevli!B9","v":"Nevzat ÇOBAN"},null,null,null,null,null,null,null,{"$f":"Görevli!B11","v":"Mehmet AVCU"}]
[null,{"$f":"Görevli!B6","v":"Elektrik-Elektronik Tek. Öğrt."},null,null,null,{"$f":"Görevli!B8","v":"Metal Tek. Öğrt."},null,null,null,null,null,null,{"$f":"Görevli!B10","v":"Metal Tek. Öğrt."},null,null,null,null,null,null,null,{"$f":"Görevli!B12","v":"Elektrik-Elektronik Tek. Öğrt."}]
[]
[null,"* Piyasa fiyat araştırması yapılacak kişi/firma/yer sayısına ihale yetkilisi karar verebilecektir."]
[null,"* Piyasa fiyat araştırması için görevlendirilecek personelin sayısına ihale yetkilisi karar verebilecektir."]
[]
["M.Y.H.B.Y. Örnek No: 2"]

{"sheet":"Teslim Alma","index":7,"n_rows":25,"n_cols":8,"rows_kept":25,"cut":false,"hidden":false,"merged":[[5,10,5,18],[0,0,0,8],[21,0,21,8],[5,0,5,8],[6,0,6,8],[16,6,16,8],[12,0,12,2],[13,0,13,2],[12,7,12,8],[14,7,14,8],[13,7,13,8],[2,1,2,3],[12,3,12,6],[7,0,7,8],[13,3,13,6],[14,3,14,6],[24,0,24,8],[14,0,14,2],[25,0,25,8],[15,0,15,2],[16,0,16,2],[16,3,16,5],[22,0,22,8],[23,0,23,8]]}
["PINARBAŞI MESLEKİ VE TEKNİK ANADOLU LİSESİ MÜDÜRLÜĞÜ\nMUAYENE VE TESLİM ALMA KABUL  TUTANAĞIDIR\n"]
["SAYI     :",{"$f":"CONCATENATE('Sabit Bilgiler'!B62,\"/\",'Sabit Bilgiler'!B61)","v":"934/"}]
["KONU  :","Muayene ve Teslim Alma"]
[]
[]
[{"$f":"CONCATENATE(\"               \",\"Okulumuz Pınarbaşı Mesleki ve Teknik Anadolu Lisesi Müdürlüğü  \",'Sabit Bilgiler'!B50,\" mali yılı içinde\",\" \",'Sabit Bilgiler'!B48,\" \",\"için\",\" \",\"27.09.2017\",\" \",\"tarih ve\",\" \",'Sabit Bilgiler'!B41,\" \",\"nolu faturada yazılı\",\" \",'Sabit Bilgiler'!B60,\" \",\"malzemenin\",\" \",'Sabit Bilgiler'!B35,\" \",\"den/dan alındığı ve teslim edildiği, söz konusu malzemenin sorumluluğunun idaremize ait olduğunu beyan ederiz.\")","v":"               Okulumuz Pınarbaşı Mesleki ve Teknik Anadolu Lisesi Müdürlüğü  2017 mali yılı içinde Elektrik Elektronik Tek. Alanı Temrinlik Malzeme alımı için 27.09.2017 tarih ve 83640 nolu faturada yazılı 5(Beş) Kalem malzemenin DEMİRCİOĞLU TİCARET den/dan alındığı ve teslim edildiği, söz konusu malzemenin sorumluluğunun idaremize ait olduğunu beyan ederiz."}]
[{"$f":"CONCATENATE(\"                 \",\"Faturadaki\",\"  \",'Sabit Bilgiler'!B60,\"  \",\"malzeme teklifte belirtilen özellikleri taşıdığından teslim alınmıştır.\")","v":"                 Faturadaki  5(Beş) Kalem  malzeme teklifte belirtilen özellikleri taşıdığından teslim alınmıştır."}]
["                 Gereğinin yapılması için bilgilerinize arz ederiz"]
[]
[]
[]
[]
["Muayene Teslim Alma Başkanı",null,null,"Üye",null,null,null,"Üye"]
[{"$f":"Görevli!B19","v":"Kenan ÇAKMAK"},null,null,{"$f":"Görevli!B21","v":"Bünyamin ELTURAN"},null,null,null,{"$f":"Görevli!B23","v":"Yasin CEPECİ"}]
[{"$f":"Görevli!B20","v":"Müdür Yardımcısı"},null,null,{"$f":"Görevli!B22","v":"Matematik Öğrt."},null,null,null,{"$f":"Görevli!B24","v":"Elektrik-Elektronik Tek. Öğrt."}]
[]
[]
[]
[]
[]
[]
["İTA AMİRİ"]
[{"$f":"'Sabit Bilgiler'!G33","v":"27.09.2017"}]
[{"$f":"'Sabit Bilgiler'!B26","v":"Mehmet ÖZGÜL"}]
[{"$f":"'Sabit Bilgiler'!B27","v":"Okul Müdürü"}]

{"sheet":"Dilekçe","index":8,"n_rows":27,"n_cols":7,"rows_kept":27,"cut":false,"hidden":false,"merged":[[26,0,26,8],[25,0,25,8],[19,0,19,8],[13,5,13,8],[1,0,1,8],[2,6,2,7],[15,5,15,8],[16,5,16,8],[6,0,6,8],[5,0,5,8]]}
[]
["PINARBAŞI MESLEKİ VE TEKNİK ANADOLU LİSESİ MÜDÜRLÜĞÜ"]
[null,null,null,null,null,null,"          PINARBAŞI"]
[]
[]
[{"$f":"CONCATENATE(\"            \",'Sabit Bilgiler'!B48,\" \",\"ihalesi sonucunda\",\"  \",\"27.09.2017\",\"  \",\"tarih ve\",\"  \",'Sabit Bilgiler'!B41,\"  \",\"nolu faturadaki tutarın adıma kayıtlı\",\"  \",'Sabit Bilgiler'!B37,\"  \",'Sabit Bilgiler'!B38,\"  \",\"hesabına yatırılması hususunda;\")","v":"            Elektrik Elektronik Tek. Alanı Temrinlik Malzeme alımı ihalesi sonucunda  27.09.2017  tarih ve  83640  nolu faturadaki tutarın adıma kayıtlı  Türkiye İş Bankası Pınarbaşı Şubesi  TR55 0006 4000 0015 3100 0052 36  hesabına yatırılması hususunda;"}]
["            Gereğini ilgilerinize arz ederim."]
[]
[]
[]
[]
[]
[]
[null,null,null,null,null,"2017-09-27"]
[]
[]
[null,null,null,null,null,{"$f":"'Sabit Bilgiler'!B35","v":"DEMİRCİOĞLU TİCARET"}]
[]
[]
[{"$f":"CONCATENATE(\"            \",\"Bu dilekçe fatura tutarının\",\"  \",'Sabit Bilgiler'!B37,\"  \",'Sabit Bilgiler'!B38,\"  \",\"iban nolu hesaba ödenmesi uygundur.\")","v":"            Bu dilekçe fatura tutarının  Türkiye İş Bankası Pınarbaşı Şubesi  TR55 0006 4000 0015 3100 0052 36  iban nolu hesaba ödenmesi uygundur."}]
[]
[]
[]
[]
[]
["Mehmet ÖZGÜL"]
["Okul Müdürü"]